fUST/lending_fUST_20250521
["ID","MTS","AMOUNT","RATE_DAILY","PERIOD"]
[361793517,1747804240250,-430.0,0.00016986,2]
[361793518,1747804240260,-670.58,0.00016986,2]
[361793519,1747804240269,-430.0,0.00016986,2]
[361793520,1747804240279,-430.0,0.00016986,2]
[361793521,1747804240288,-543.73,0.00016986,2]
[361793522,1747804240298,-157.58,0.00016986,2]
[361793523,1747804240308,-430.0,0.00016986,2]
[361793524,1747804240317,-998.6,0.00016986,2]
[361793525,1747804240327,-430.0,0.00016986,2]
[361793526,1747804240336,-460.86,0.00016986,2]
[361793527,1747804240346,-430.0,0.00016986,2]
[361793528,1747804240356,-430.0,0.00016986,2]
[361793529,1747804240366,-430.0,0.00016986,2]
[361793530,1747804240375,-430.0,0.00016986,2]
[361793531,1747804240385,-430.0,0.00016986,2]
[361793532,1747804240395,-430.0,0.00016986,2]
[361793533,1747804240405,-430.0,0.00016986,2]
[361793534,1747804240415,-430.0,0.00016986,2]
[361793535,1747804240424,-430.0,0.00016986,2]
[361793536,1747804240435,-430.0,0.00016986,2]
[361793537,1747804240445,-430.0,0.00016986,2]
[361793539,1747804240455,-471.13,0.00016986,2]
[361793540,1747804240465,-430.0,0.00016986,2]
[361793541,1747804240475,-894.16,0.00016986,2]
[361793542,1747804240485,-430.0,0.00016986,2]
[361793543,1747804240494,-549.74,0.00016986,2]
[361793544,1747804240504,-430.0,0.00016986,2]
[361793545,1747804240514,-430.0,0.00016986,2]
[361793546,1747804240524,-430.0,0.00016986,2]
[361793547,1747804240534,-430.0,0.00016986,2]
[361793548,1747804240543,-430.0,0.00016986,2]
[361793549,1747804240554,-498.89,0.00016986,2]
[361793550,1747804240564,-430.0,0.00016986,2]
[361793551,1747804240574,-151.380611,0.0001726,2]
[361793552,1747804240584,-151.41839,0.0001726,2]
[361793553,1747804240593,-179.29771237,0.0001726,2]
[361793554,1747804240603,-151.0,0.0001726,2]
[361793555,1747804240612,-151.0,0.0001726,2]
[361793556,1747804240622,-430.0,0.0001726,2]
[361793557,1747804240631,-430.0,0.0001726,2]
[361793558,1747804240640,-365.6776725,0.0001726,2]
[361793559,1747804240649,-430.0,0.0001726,2]
[361793560,1747804240659,-584.673754,0.0001726,2]
[361793561,1747804240669,-444.272822,0.0001726,2]
[361793562,1747804240678,-444.272822,0.0001726,2]
[361793563,1747804240689,-270.370646,0.0001726,2]
[361793564,1747804240699,-270.370646,0.0001726,2]
[361793565,1747804240708,-151.0,0.0001726,2]
[361793566,1747804240719,-152.954296,0.0001726,2]
[361793567,1747804240728,-151.0,0.0001726,2]
[361793568,1747804240738,-151.0,0.0001726,2]
[361793569,1747804240748,-179.759942,0.0001726,2]
[361793570,1747804240759,-430.0,0.0001726,2]
[361793571,1747804240769,-430.0,0.0001726,2]
[361793572,1747804240778,-151.0,0.0001726,2]
[361793573,1747804240787,-430.0,0.0001726,2]
[361793574,1747804240798,-282.65519947,0.0001726,2]
[361793575,1747804240807,-151.0,0.0001726,2]
[361793576,1747804240817,-430.0,0.0001726,2]
[361793577,1747804240826,-430.0,0.0001726,2]
[361793578,1747804240836,-151.0,0.0001726,2]
[361793579,1747804240846,-430.0,0.0001726,2]
[361793580,1747804240855,-430.0,0.0001726,2]
[361793581,1747804240864,-446.13,0.0001726,2]
[361793582,1747804240874,-166.52879,0.0001726,2]
[361793583,1747804240883,-166.52879,0.0001726,2]
[361793584,1747804240892,-354.632393,0.0001726,2]
[361793585,1747804240902,-354.632393,0.0001726,2]
[361793586,1747804240911,-430.0,0.0001726,2]
[361793587,1747804240921,-151.0,0.0001726,2]
[361793588,1747804240930,-430.0,0.0001726,2]
[361793589,1747804240942,-430.0,0.0001726,2]
[361793590,1747804240951,-430.0,0.0001726,2]
[361793591,1747804240960,-430.0,0.0001726,2]
[361793592,1747804240970,-430.0,0.0001726,2]
[361793593,1747804240980,-379.53770309,0.0001726,2]
[361793594,1747804240989,-430.0,0.0001726,2]
[361793595,1747804240999,-871.82,0.0001726,2]
[361793596,1747804241008,-430.0,0.0001726,2]
[361793597,1747804241018,-430.0,0.0001726,2]
[361793598,1747804241027,-430.0,0.0001726,2]
[361793599,1747804241036,-151.0,0.0001726,2]
[361793600,1747804241046,-430.0,0.0001726,2]
[361793601,1747804241056,-217.115441,0.0001726,2]
[361793602,1747804241065,-430.0,0.0001726,2]
[361793603,1747804241075,-526.49,0.0001726,2]
[361793604,1747804241084,-2075.25,0.0001726,2]
[361793605,1747804241094,-1865.77,0.0001726,2]
[361793606,1747804241104,-151.0,0.0001726,2]
[361793607,1747804241114,-430.0,0.0001726,2]
[361793608,1747804241123,-453.94,0.0001726,2]
[361793609,1747804241132,-430.0,0.0001726,2]
[361793610,1747804241142,-430.0,0.0001726,2]
[361793611,1747804241154,-542.60305527,0.0001726,2]
[361793612,1747804241163,-1558.65,0.0001726,2]
[361793613,1747804241173,-430.0,0.0001726,2]
[361793614,1747804241184,-197.766955,0.0001726,2]
[361793615,1747804241194,-430.0,0.0001726,2]
[361793616,1747804241203,-430.0,0.0001726,2]
[361793617,1747804241213,-430.0,0.0001726,2]
[361793618,1747804241223,-197.766955,0.0001726,2]
[361793619,1747804241232,-151.0,0.0001726,2]
[361793620,1747804241242,-237.9903564,0.0001726,2]
[361793621,1747804241251,-236.480277,0.0001726,2]
[361793622,1747804241260,-236.480277,0.0001726,2]
[361793623,1747804241270,-285.440968,0.0001726,2]
[361793624,1747804241280,-452.43,0.0001726,2]
[361793625,1747804241290,-430.0,0.0001726,2]
[361793626,1747804241299,-285.440968,0.0001726,2]
[361793627,1747804241308,-498.88,0.0001726,2]
[361793628,1747804241317,-430.0,0.0001726,2]
[361793629,1747804241327,-430.0,0.0001726,2]
[361793630,1747804241336,-430.0,0.0001726,2]
[361793631,1747804241345,-596.99,0.0001726,2]
[361793632,1747804241354,-430.0,0.0001726,2]
[361793633,1747804241364,-670.58,0.0001726,2]
[361793634,1747804241373,-430.0,0.0001726,2]
[361793635,1747804241383,-430.0,0.0001726,2]
[361793636,1747804241392,-543.73,0.0001726,2]
[361793637,1747804241402,-430.0,0.0001726,2]
[361793638,1747804241411,-998.6,0.0001726,2]
[361793639,1747804241422,-430.0,0.0001726,2]
[361793640,1747804241432,-460.86,0.0001726,2]
[361793641,1747804241441,-430.0,0.0001726,2]
[361793642,1747804241451,-430.0,0.0001726,2]
[361793643,1747804241461,-151.0,0.0001726,2]
[361793644,1747804241471,-430.0,0.0001726,2]
[361793645,1747804241482,-430.0,0.0001726,2]
[361793646,1747804241499,-430.0,0.0001726,2]
[361793647,1747804241509,-151.0,0.0001726,2]
[361793648,1747804241518,-430.0,0.0001726,2]
[361793649,1747804241528,-469.27384327,0.0001726,2]
[361793650,1747804241538,-430.0,0.0001726,2]
[361793651,1747804241547,-430.0,0.0001726,2]
[361793652,1747804241557,-430.0,0.0001726,2]
[361793653,1747804241567,-471.13,0.0001726,2]
[361793654,1747804241576,-430.0,0.0001726,2]
[361793655,1747804241586,-894.16,0.0001726,2]
[361793656,1747804241595,-430.0,0.0001726,2]
[361793657,1747804241605,-549.74,0.0001726,2]
[361793658,1747804241615,-430.0,0.0001726,2]
[361793659,1747804241625,-430.0,0.0001726,2]
[361793660,1747804241634,-430.0,0.0001726,2]
[361793661,1747804241644,-430.0,0.0001726,2]
[361793662,1747804241653,-356.32879258,0.0001726,2]
[361793663,1747804241663,-151.0,0.0001726,2]
[361793664,1747804241674,-498.89,0.0001726,2]
[361793665,1747804241689,-430.0,0.0001726,2]
[361793666,1747804241700,-250.0,0.000173,2]
[361793667,1747804241710,-250.0,0.000173,2]
[361793668,1747804241719,-250.0,0.000173,2]
[361793669,1747804241728,-250.0,0.000173,2]
[361793670,1747804241738,-819.55812245,0.00017301,2]
[361793671,1747804241751,-507.09304381,0.00017419,2]
[361793672,1747804241761,-151.0,0.00017521,2]
[361793673,1747804241771,-151.0,0.00017521,2]
[361793674,1747804241780,-151.0,0.00017521,2]
[361793675,1747804241791,-166.52879,0.00017521,2]
[361793676,1747804241801,-166.52879,0.00017521,2]
[361793677,1747804241810,-354.632393,0.00017521,2]
[361793678,1747804241820,-354.632393,0.00017521,2]
[361793679,1747804241830,-151.0,0.00017521,2]
[361793680,1747804241841,-151.0,0.00017534,2]
[361793681,1747804241851,-151.0,0.00017534,2]
[361793682,1747804241862,-151.0,0.00017534,2]
[361793683,1747804241872,-236.480326,0.00017534,2]
[361793684,1747804241881,-236.480326,0.00017534,2]
[361793685,1747804241891,-151.0,0.00017534,2]
[361793686,1747804241900,-189.00064466,0.00017534,2]
[361793687,1747804241909,-430.0,0.00017534,2]
[361793688,1747804241919,-430.0,0.00017534,2]
[361793689,1747804241928,-584.673754,0.00017534,2]
[361793690,1747804241940,-444.272822,0.00017534,2]
[361793691,1747804241949,-444.272822,0.00017534,2]
[361793692,1747804241959,-270.370646,0.00017534,2]
[361793693,1747804241968,-270.370646,0.00017534,2]
[361793694,1747804241977,-151.0,0.00017534,2]
[361793695,1747804241986,-151.0,0.00017534,2]
[361793696,1747804241995,-151.0,0.00017534,2]
[361793697,1747804242005,-300.45147346,0.00017534,2]
[361793698,1747804242014,-430.0,0.00017534,2]
[361793699,1747804242024,-430.0,0.00017534,2]
[361793700,1747804242033,-430.0,0.00017534,2]
[361793701,1747804242043,-430.0,0.00017534,2]
[361793702,1747804242052,-430.0,0.00017534,2]
[361793703,1747804242062,-430.0,0.00017534,2]
[361793704,1747804242073,-446.13,0.00017534,2]
[361793705,1747804242083,-430.0,0.00017534,2]
[361793706,1747804242092,-430.0,0.00017534,2]
[361793707,1747804242101,-376.20130231,0.00017534,2]
[361793708,1747804242235,-151.0,0.0001726,2]
[361793709,1747804242245,-53.79869769,0.00017534,2]
[361793710,1747804242255,-195.20130231,0.00017534,2]
[361794043,1747804246527,-430.0,0.00016438,2]
[361794045,1747804246537,-430.0,0.00016438,2]
[361794047,1747804246547,-559.42167476,0.00016438,2]
[361794049,1747804246556,-259.87832524,0.00016438,2]
[361794069,1747804246804,-170.12167476,0.00016438,2]
[361794071,1747804246814,-430.0,0.00016712,2]
[361794073,1747804246823,-430.0,0.00016712,2]
[361794074,1747804246832,-430.0,0.00016986,2]
[361794076,1747804246842,-430.0,0.00016986,2]
[361794078,1747804246853,-430.0,0.0001726,2]
[361794080,1747804246863,-234.79869769,0.00017534,2]
[361794081,1747804246872,-430.0,0.00017534,2]
[361794083,1747804246882,-430.0,0.00017534,2]
[361794085,1747804246892,-871.82,0.00017534,2]
[361794087,1747804246901,-430.0,0.00017534,2]
[361794088,1747804246911,-430.0,0.00017534,2]
[361794090,1747804246920,-151.0,0.00017534,2]
[361794092,1747804246929,-430.0,0.00017534,2]
[361794094,1747804246939,-430.0,0.00017534,2]
[361794095,1747804246948,-526.49,0.00017534,2]
[361794097,1747804246958,-2075.25,0.00017534,2]
[361794099,1747804246967,-146.8559555,0.00017534,2]
[361794970,1747805436736,-309.0014,0.00013699,2]
[361794971,1747805436746,-617.55561063,0.00016001,2]
[361794972,1747805436756,-1039.7,0.00016101,2]
[361794973,1747805436766,-470.388412,0.00016332,2]
[361794974,1747805436776,-300.0,0.00016437,2]
[361794975,1747805436786,-430.0,0.00016438,2]
[361794977,1747805436796,-430.0,0.00016438,2]
[361794979,1747805436806,-430.0,0.00016438,2]
[361794980,1747805436815,-430.0,0.00016438,2]
[361794981,1747805436824,-430.0,0.00016438,2]
[361794982,1747805436834,-445.7419247,0.00016438,2]
[361794983,1747805436844,-333.6079753,0.00016438,2]
[361794984,1747805436853,-435.2765632,0.00016438,2]
[361794985,1747805436864,-430.0,0.00016438,2]
[361794986,1747805436873,-430.0,0.00016438,2]
[361794987,1747805436883,-430.0,0.00016438,2]
[361794988,1747805436893,-430.0,0.00016438,2]
[361794989,1747805436903,-430.0,0.00016438,2]
[361794990,1747805436916,-430.0,0.00016438,2]
[361794991,1747805436926,-430.0,0.00016438,2]
[361794992,1747805436935,-430.0,0.00016438,2]
[361794993,1747805436945,-430.0,0.00016438,2]
[361794994,1747805436955,-430.0,0.00016438,2]
[361794995,1747805436965,-1642.91,0.00016438,2]
[361794996,1747805436974,-430.0,0.00016438,2]
[361794997,1747805436983,-430.0,0.00016438,2]
[361794998,1747805436993,-430.0,0.00016438,2]
[361794999,1747805437007,-430.0,0.00016438,2]
[361795000,1747805437017,-430.0,0.00016438,2]
[361795001,1747805437029,-430.0,0.00016438,2]
[361795002,1747805437038,-272.21663477,0.00016438,2]
[361795003,1747805437048,-430.0,0.00016438,2]
[361795004,1747805437058,-430.0,0.00016438,2]
[361795005,1747805437068,-430.0,0.00016438,2]
[361795006,1747805437077,-430.0,0.00016438,2]
[361795007,1747805437087,-430.0,0.00016438,2]
[361795008,1747805437096,-430.0,0.00016438,2]
[361795009,1747805437106,-430.0,0.00016438,2]
[361795010,1747805437116,-1548.69,0.00016438,2]
[361795011,1747805437125,-430.0,0.00016438,2]
[361795012,1747805437134,-430.0,0.00016438,2]
[361795013,1747805437144,-430.0,0.00016438,2]
[361795014,1747805437156,-430.0,0.00016438,2]
[361795015,1747805437166,-430.0,0.00016438,2]
[361795016,1747805437175,-497.49,0.00016438,2]
[361795017,1747805437185,-1298.88,0.00016438,2]
[361795018,1747805437195,-430.0,0.00016438,2]
[361795019,1747805437204,-430.0,0.00016438,2]
[361795020,1747805437213,-453.11,0.00016438,2]
[361795021,1747805437222,-430.0,0.00016438,2]
[361795022,1747805437233,-430.0,0.00016438,2]
[361795023,1747805437243,-430.0,0.00016438,2]
[361795024,1747805437252,-430.0,0.00016438,2]
[361795025,1747805437262,-558.82,0.00016438,2]
[361795026,1747805437272,-430.0,0.00016438,2]
[361795027,1747805437282,-430.0,0.00016438,2]
[361795028,1747805437292,-430.0,0.00016438,2]
[361795029,1747805437302,-430.0,0.00016438,2]
[361795030,1747805437311,-430.0,0.00016438,2]
[361795032,1747805437321,-430.0,0.00016438,2]
[361795034,1747805437330,-430.0,0.00016438,2]
[361795035,1747805437340,-430.0,0.00016438,2]
[361795036,1747805437349,-430.0,0.00016438,2]
[361795037,1747805437359,-430.0,0.00016438,2]
[361795038,1747805437369,-430.0,0.00016438,2]
[361795039,1747805437379,-430.0,0.00016438,2]
[361795040,1747805437388,-430.0,0.00016438,2]
[361795041,1747805437398,-745.13,0.00016438,2]
[361795042,1747805437407,-832.16,0.00016438,2]
[361795043,1747805437417,-430.61093112,0.00016438,2]
[361795044,1747805437427,-430.0,0.00016438,2]
[361795045,1747805437436,-430.0,0.00016438,2]
[361795046,1747805437446,-690.19,0.00016438,2]
[361795047,1747805437456,-458.12,0.00016438,2]
[361795048,1747805437465,-430.0,0.00016438,2]
[361795049,1747805437475,-430.0,0.00016438,2]
[361795050,1747805437485,-430.0,0.00016438,2]
[361795051,1747805437495,-430.0,0.00016438,2]
[361795052,1747805437504,-430.0,0.00016438,2]
[361795053,1747805437514,-430.0,0.00016438,2]
[361795054,1747805437525,-430.0,0.00016438,2]
[361795055,1747805437535,-430.0,0.00016438,2]
[361795056,1747805437544,-403.3573642,0.00016438,2]
[361795057,1747805437554,-430.0,0.00016438,2]
[361795058,1747805437565,-167.13163836,0.00016438,2]
[361795059,1747805437574,-500.0,0.00016711,2]
[361795060,1747805437584,-203.15049443,0.00016711,2]
[361795061,1747805437594,-461.95398273,0.00016711,2]
[361795062,1747805437603,-320.0,0.00016712,2]
[361795063,1747805437613,-430.0,0.00016712,2]
[361795064,1747805437623,-497.54663862,0.00016712,2]
[361795065,1747805437632,-430.0,0.00016712,2]
[361795066,1747805437644,-430.0,0.00016712,2]
[361795067,1747805437653,-430.0,0.00016712,2]
[361795068,1747805437662,-430.0,0.00016712,2]
[361795069,1747805437672,-430.0,0.00016712,2]
[361795070,1747805437681,-430.0,0.00016712,2]
[361795071,1747805437690,-430.0,0.00016712,2]
[361795072,1747805437700,-430.0,0.00016712,2]
[361795073,1747805437710,-430.0,0.00016712,2]
[361795074,1747805437719,-337.06558151,0.00016712,2]
[361795075,1747805437730,-430.0,0.00016712,2]
[361795076,1747805437739,-430.0,0.00016712,2]
[361795077,1747805437749,-1642.91,0.00016712,2]
[361795078,1747805437759,-237.15312231,0.00016712,2]
[361795079,1747805437768,-430.0,0.00016712,2]
[361795080,1747805437779,-430.0,0.00016712,2]
[361795081,1747805437790,-430.0,0.00016712,2]
[361795082,1747805437799,-430.0,0.00016712,2]
[361795083,1747805437810,-430.0,0.00016712,2]
[361795084,1747805437820,-430.0,0.00016712,2]
[361795085,1747805437830,-430.0,0.00016712,2]
[361795086,1747805437840,-430.0,0.00016712,2]
[361795087,1747805437849,-430.0,0.00016712,2]
[361795088,1747805437859,-430.0,0.00016712,2]
[361795089,1747805437869,-430.0,0.00016712,2]
[361795090,1747805437879,-417.61615394,0.00016712,2]
[361795093,1747805438363,-12.38384606,0.00016712,2]
[361795094,1747805438375,-1548.69,0.00016712,2]
[361795095,1747805438385,-430.0,0.00016712,2]
[361795096,1747805438395,-430.0,0.00016712,2]
[361795097,1747805438405,-430.0,0.00016712,2]
[361795098,1747805438415,-430.0,0.00016712,2]
[361795099,1747805438424,-398.38488496,0.00016712,2]
[361795100,1747805438436,-31.61511504,0.00016712,2]
[361795101,1747805438446,-497.49,0.00016712,2]
[361795102,1747805438455,-1298.88,0.00016712,2]
[361795103,1747805438466,-430.0,0.00016712,2]
[361795104,1747805438475,-425.01,0.00016712,2]
[361795105,1747805438485,-453.11,0.00016712,2]
[361795106,1747805438494,-430.0,0.00016712,2]
[361795107,1747805438504,-430.0,0.00016712,2]
[361795108,1747805438514,-430.0,0.00016712,2]
[361795109,1747805438524,-430.0,0.00016712,2]
[361795110,1747805438533,-558.82,0.00016712,2]
[361795111,1747805438543,-430.0,0.00016712,2]
[361795112,1747805438552,-430.0,0.00016712,2]
[361795113,1747805438562,-430.0,0.00016712,2]
[361795114,1747805438571,-430.0,0.00016712,2]
[361795115,1747805438581,-430.0,0.00016712,2]
[361795116,1747805438591,-395.84124714,0.00016712,2]
[361795117,1747805438600,-430.0,0.00016712,2]
[361795118,1747805438610,-430.0,0.00016712,2]
[361795119,1747805438619,-430.0,0.00016712,2]
[361795120,1747805438628,-430.0,0.00016712,2]
[361795121,1747805438638,-430.0,0.00016712,2]
[361795122,1747805438647,-430.0,0.00016712,2]
[361795123,1747805438657,-430.0,0.00016712,2]
[361795124,1747805438666,-745.13,0.00016712,2]
[361795125,1747805438676,-832.16,0.00016712,2]
[361795126,1747805438685,-430.0,0.00016712,2]
[361795127,1747805438695,-430.0,0.00016712,2]
[361795129,1747805438705,-690.19,0.00016712,2]
[361795131,1747805438714,-458.12,0.00016712,2]
[361795133,1747805438723,-430.0,0.00016712,2]
[361795135,1747805438733,-430.0,0.00016712,2]
[361795137,1747805438742,-430.0,0.00016712,2]
[361795139,1747805438751,-430.0,0.00016712,2]
[361795141,1747805438761,-430.0,0.00016712,2]
[361795142,1747805438770,-212.62650257,0.00016712,2]
[361795300,1747805442358,-217.37349743,0.00016712,2]
[361795301,1747805442367,-430.0,0.00016712,2]
[361795302,1747805442377,-430.0,0.00016712,2]
[361795303,1747805442387,-430.0,0.00016712,2]
[361795304,1747805442397,-366.83266198,0.00016886,2]
[361795305,1747805442407,-430.0,0.00016986,2]
[361795306,1747805442417,-430.0,0.00016986,2]
[361795307,1747805442427,-430.0,0.00016986,2]
[361795308,1747805442437,-430.0,0.00016986,2]
[361795309,1747805442447,-430.0,0.00016986,2]
[361795310,1747805442457,-430.0,0.00016986,2]
[361795311,1747805442466,-430.0,0.00016986,2]
[361795312,1747805442475,-430.0,0.00016986,2]
[361795313,1747805442485,-394.40045439,0.00016986,2]
[361795314,1747805442495,-430.0,0.00016986,2]
[361795315,1747805442504,-430.0,0.00016986,2]
[361795316,1747805442514,-543.74102445,0.00016986,2]
[361795317,1747805442524,-1642.91,0.00016986,2]
[361795318,1747805442535,-430.0,0.00016986,2]
[361795319,1747805442546,-447.39178526,0.00016986,2]
[361795320,1747805442556,-430.0,0.00016986,2]
[361795321,1747805442566,-430.0,0.00016986,2]
[361795322,1747805442576,-430.0,0.00016986,2]
[361795323,1747805442586,-430.0,0.00016986,2]
[361795324,1747805442596,-430.0,0.00016986,2]
[361795325,1747805442606,-430.0,0.00016986,2]
[361795326,1747805442616,-430.0,0.00016986,2]
[361795327,1747805442625,-430.0,0.00016986,2]
[361795328,1747805442640,-430.0,0.00016986,2]
[361795329,1747805442654,-430.0,0.00016986,2]
[361795330,1747805442668,-1548.69,0.00016986,2]
[361795331,1747805442681,-430.0,0.00016986,2]
[361795332,1747805442694,-430.0,0.00016986,2]
[361795333,1747805442705,-430.0,0.00016986,2]
[361795334,1747805442718,-430.0,0.00016986,2]
[361795335,1747805442731,-430.0,0.00016986,2]
[361795336,1747805442744,-497.49,0.00016986,2]
[361795337,1747805442757,-1298.88,0.00016986,2]
[361795338,1747805442771,-430.0,0.00016986,2]
[361795339,1747805442786,-453.11,0.00016986,2]
[361795340,1747805442804,-430.0,0.00016986,2]
[361795341,1747805442818,-430.0,0.00016986,2]
[361795342,1747805442841,-497.89490678,0.00016986,2]
[361795343,1747805442865,-430.0,0.00016986,2]
[361795344,1747805442880,-558.82,0.00016986,2]
[361795345,1747805442892,-430.0,0.00016986,2]
[361795346,1747805442905,-430.0,0.00016986,2]
[361795347,1747805442916,-430.0,0.00016986,2]
[361795348,1747805442928,-430.0,0.00016986,2]
[361795349,1747805442941,-430.0,0.00016986,2]
[361795350,1747805442954,-430.0,0.00016986,2]
[361795351,1747805442965,-430.0,0.00016986,2]
[361795352,1747805442978,-430.0,0.00016986,2]
[361795353,1747805442988,-430.0,0.00016986,2]
[361795354,1747805442999,-430.0,0.00016986,2]
[361795356,1747805443011,-430.0,0.00016986,2]
[361795358,1747805443022,-430.0,0.00016986,2]
[361795359,1747805443035,-745.13,0.00016986,2]
[361795360,1747805443048,-832.16,0.00016986,2]
[361795361,1747805443060,-430.0,0.00016986,2]
[361795363,1747805443073,-430.0,0.00016986,2]
[361795364,1747805443085,-690.19,0.00016986,2]
[361795365,1747805443099,-458.12,0.00016986,2]
[361795366,1747805443113,-430.0,0.00016986,2]
[361795367,1747805443126,-430.0,0.00016986,2]
[361795368,1747805443141,-430.0,0.00016986,2]
[361795371,1747805443154,-430.0,0.00016986,2]
[361795372,1747805443164,-215.69280464,0.00016986,2]
[361795373,1747805443174,-430.0,0.00016986,2]
[361795374,1747805443185,-430.0,0.00016986,2]
[361795375,1747805443197,-430.0,0.00016986,2]
[361795376,1747805443211,-430.0,0.00016986,2]
[361795377,1747805443225,-296.60997948,0.00017083,2]
[361795380,1747805443239,-366.83266196,0.0001724,2]
[361795381,1747805443251,-500.0,0.00017259,2]
[361795383,1747805443261,-500.0,0.00017259,2]
[361795384,1747805443272,-282.65893477,0.00017259,2]
[361795385,1747805443283,-500.0,0.00017259,2]
[361795386,1747805443296,-500.0,0.00017259,2]
[361795387,1747805443308,-310.23741718,0.00017259,2]
[361795388,1747805443318,-151.0,0.0001726,2]
[361795389,1747805443330,-430.0,0.0001726,2]
[361795391,1747805443340,-308.80096751,0.0001726,2]
[361795392,1747805443351,-430.0,0.0001726,2]
[361795393,1747805443362,-430.0,0.0001726,2]
[361795394,1747805443372,-443.32,0.0001726,2]
[361795395,1747805443384,-189.68840611,0.0001726,2]
[361795396,1747805443396,-430.0,0.0001726,2]
[361795398,1747805443408,-430.0,0.0001726,2]
[361795400,1747805443419,-430.0,0.0001726,2]
[361795401,1747805443431,-1642.91,0.0001726,2]
[361795402,1747805443442,-368.14669136,0.0001726,2]
[361795403,1747805443453,-430.0,0.0001726,2]
[361795405,1747805443464,-430.0,0.0001726,2]
[361795407,1747805443476,-430.0,0.0001726,2]
[361795408,1747805443488,-229.26764138,0.0001726,2]
[361795409,1747805443499,-323.95712502,0.0001726,2]
[361795435,1747805446549,-430.0,0.00016438,2]
[361795436,1747805446560,-430.0,0.00016438,2]
[361795437,1747805446574,-430.0,0.00016712,2]
[361795438,1747805446586,-430.0,0.00016712,2]
[361795439,1747805446598,-330.84775286,0.00016986,2]
[361795440,1747805446611,-430.0,0.00016986,2]
[361795441,1747805446622,-106.04287498,0.0001726,2]
[361795442,1747805446634,-430.0,0.0001726,2]
[361795443,1747805446646,-430.0,0.0001726,2]
[361795444,1747805446659,-491.28886708,0.0001726,2]
[361795445,1747805446681,-430.0,0.0001726,2]
[361795446,1747805446701,-381.82050558,0.0001726,2]
[361795448,1747805446716,-924.28760393,0.0001726,2]
[361795449,1747805446731,-242.58189049,0.0001726,2]
[361795450,1747805446742,-430.0,0.0001726,2]
[361795451,1747805446753,-147.06646235,0.0001726,2]
[361795453,1747805820296,-5000.0,0.00015691,2]
[361795454,1747805820319,-235.194206,0.00015849,2]
[361795455,1747805820348,-224.0,0.00016072,2]
[361795456,1747805820373,-300.0,0.00016072,2]
[361795457,1747805820396,-300.0,0.00016072,2]
[361795458,1747805820419,-9494.2316303,0.00016073,2]
[361795459,1747805820442,-404.79405337,0.00016338,2]
[361795460,1747805820465,-436.15290438,0.00016438,2]
[361795461,1747805820488,-430.0,0.00016438,2]
[361795462,1747805820512,-430.0,0.00016438,2]
[361795463,1747805820535,-488.96,0.00016438,2]
[361795464,1747805820558,-430.0,0.00016438,2]